bitfinex-derivatives/quotes_SOLF0:USTF0_20260129
["timestamp","ask_amount","ask_price","bid_price","bid_amount"]
[1769646097086,3.386542,125.16,125.1,2.28202444]
[1769646097087,3.386542,125.16,125.12,1.96730322]
[1769646097283,3.386542,125.16,125.11,1.96730322]
[1769646098387,3.386542,125.16,125.11,9.17120322]
[1769646098581,3.386542,125.16,125.11,11.45322766]
[1769646098791,9.16740322,125.18,125.08,112.0859]
[1769646098792,3.386542,125.18,125.12,4.24932766]
[1769646099787,3.386542,125.18,125.13,7.2028]
[1769646100087,3.386542,125.18,125.13,9.17010322]
[1769646100685,3.386542,125.18,125.13,11.45212766]
[1769646100880,5.35384522,125.2,125.14,1.96730322]
[1769646101387,3.386542,125.19,125.14,1.96730322]
[1769646103288,3.386542,125.19,125.13,4.24932766]
[1769646103892,3.386542,125.19,125.14,4.24932766]
[1769646104888,10.586142,125.19,125.14,4.24932766]
[1769646106190,3.386542,125.16,125.1,22.28202444]
[1769646106391,3.386542,125.15,125.1,2.28202444]
[1769646107086,5.35384522,125.17,125.1,4.24932766]
[1769646107287,5.35384522,125.16,125.1,4.24932766]
[1769646107493,12.55564522,125.15,125.1,2.28202444]
[1769646108091,12.55634522,125.14,125.08,4.24932766]
[1769646109393,5.35384522,125.12,125.06,2.28202444]
[1769646109595,5.35384522,125.11,125.04,4.24932766]
[1769646109792,5.35384522,125.11,125.05,4.24932766]
[1769646109992,5.35384522,125.11,125.05,2.28202444]
[1769646110387,5.35384522,125.11,125.05,4.24932766]
[1769646111197,1.96730322,125.1,125.05,2.28202444]
[1769646112390,5.35384522,125.1,125.05,2.28202444]
[1769646113399,1.96730322,125.11,125.06,2.28202444]
[1769646114124,5.35384522,125.11,125.06,2.28202444]
[1769646114423,3.386542,125.11,125.06,9.48892444]
[1769646114717,3.386542,125.11,125.06,11.45622766]
[1769646114919,1.96730322,125.13,125.07,9.48822444]
[1769646115225,1.96730322,125.12,125.07,9.48822444]
[1769646117424,1.96730322,125.13,125.08,7.2056]
[1769646117724,5.27022894,125.13,125.08,7.2056]
[1769646118222,5.27022894,125.12,125.08,7.2056]
[1769646118520,5.27022894,125.12,125.07,7.2063]
[1769646120728,1.96730322,125.13,125.08,9.4827573]
[1769646121628,5.27022894,125.13,125.08,9.4827573]
[1769646125036,12.47312894,125.13,125.08,2.2771573]
[1769646126136,5.27022894,125.11,125.06,9.4840573]
[1769646126728,12.47442894,125.11,125.06,2.2771573]
[1769646127032,5.27022894,125.1,125.04,2.2771573]
[1769646127636,12.47482894,125.1,125.04,9.4851573]
[1769646128238,12.47482894,125.1,125.05,2.2771573]
[1769646128533,5.27022894,125.09,125.03,2.2771573]
[1769646128733,5.27022894,125.07,125.0,4.24446052]
[1769646129036,1.96730322,125.05,125.0,2.2771573]
[1769646133244,1.96730322,125.05,125.0,9.4874573]
[1769646134540,5.27022894,125.06,125.0,11.45476052]
[1769646135542,5.27114654,125.06,125.0,9.4874573]
[1769646136137,112.0788,125.1,124.97,194.5171573]
[1769646136138,3.30292572,125.05,124.97,194.5171573]
[1769646136442,5.27114654,125.04,124.98,4.24537812]
[1769646137341,5.27114654,125.04,124.99,7.211]
[1769646137843,12.47924654,125.04,124.98,4.24537812]
[1769646138038,3.30292572,125.02,124.97,199.4521]
[1769646138239,5.27114654,125.02,124.97,7.2121]
[1769646138736,3.30292572,125.02,124.96,4.24537812]
[1769646140141,3.30292572,125.02,124.97,7.2121]
[1769646140342,3.30292572,125.02,124.97,9.4892573]
[1769646140545,1.96822082,125.03,124.97,11.45747812]
[1769646140947,12.47924654,125.04,124.97,11.45747812]
[1769646141638,1.96822082,125.03,124.97,11.45747812]
[1769646142845,5.27114654,125.03,124.97,11.45747812]
[1769646143048,5.27114654,125.03,124.97,9.4892573]
[1769646144048,5.27114654,125.03,124.98,7.2115]
[1769646144546,3.30292572,125.03,124.98,9.4886573]
[1769646146147,7.2075,125.05,124.99,2.27832804]
[1769646146148,1.96822082,125.04,124.99,2.27832804]
[1769646146539,5.36498667,125.04,124.99,2.27832804]
[1769646148147,5.36498667,125.04,124.99,9.48922804]
[1769646148649,5.36498667,125.04,124.99,7.2109]
[1769646149347,3.46273008,125.06,125.0,4.24673532]
[1769646149542,5.4309509,125.06,125.0,4.24673532]
[1769646150451,3.46273008,125.06,125.01,9.17802082]
[1769646151346,3.46273008,125.06,125.02,7.2091]
[1769646151850,3.46273008,125.06,125.0,4.24673532]
[1769646153254,3.46273008,125.06,125.01,1.96822082]
[1769646153853,10.66863008,125.08,125.03,4.24673532]
[1769646154049,1.96822082,125.08,125.02,1.96822082]
[1769646154255,3.46273008,125.07,125.02,1.96822082]
[1769646154558,10.66923008,125.07,125.02,1.96822082]
[1769646155059,10.66923008,125.07,125.03,1.96822082]
[1769646156761,3.46273008,125.07,125.03,1.96822082]
[1769646159463,3.46273008,125.07,125.02,1.96822082]
[1769646159662,3.46273008,125.07,125.02,9.17742082]
[1769646159958,3.46273008,125.07,125.03,1.96822082]
[1769646160462,3.46273008,125.09,125.05,1.96822082]
[1769646161163,10.66813008,125.09,125.04,4.24673532]
[1769646161865,3.46273008,125.08,125.04,1.96822082]
[1769646162365,3.46273008,125.08,125.03,9.17682082]
[1769646164169,3.46273008,125.05,124.99,4.24673532]
[1769646164666,3.46273008,125.05,124.99,11.45763532]
[1769646164864,3.46273008,125.05,124.99,4.24673532]
[1769646165369,3.46273008,125.05,125.0,7.2103]
[1769646170772,3.46273008,125.05,125.0,9.17852082]
[1769646173364,9.17532082,125.06,125.0,11.45703532]
[1769646173570,5.4309509,125.07,125.01,4.24673532]
[1769646173875,11.20750699,125.07,125.01,4.24673532]
[1769646176480,3.46273008,125.06,125.01,2.2785145]
[1769646177478,10.66963008,125.06,125.01,2.2785145]
[1769646177673,3.46273008,125.06,125.01,9.4883145]
[1769646180177,7.2064,125.07,125.02,9.48481763]
[1769646180368,10.62008943,125.08,125.03,1.96822082]
[1769646180568,10.62008943,125.08,125.02,11.45303845]
[1769646181577,10.62008943,125.08,125.02,4.24393845]
[1769646181783,7.2066,125.07,125.02,4.24393845]
[1769646182080,3.41428943,125.05,125.0,4.24393845]
[1769646183276,3.41428943,125.05,125.0,11.45433845]
[1769646183770,9.17542082,125.06,125.0,11.45433845]
[1769646183976,7.2072,125.06,125.01,1.96822082]
[1769646184675,7.2072,125.06,125.0,11.45433845]
[1769646185377,5.38251025,125.07,125.0,11.45433845]
[1769646185682,5.38251025,125.07,125.01,1.96822082]
[1769646186177,10.62138943,125.06,125.0,11.45433845]
[1769646187881,3.41428943,125.05,125.0,9.48611763]
[1769646197894,3.41428943,125.04,124.98,4.24388355]
[1769646198284,5.38245535,125.04,124.98,4.24388355]
[1769646199294,5.38245535,125.04,124.98,11.45498355]
[1769646199890,5.38245535,125.04,124.98,9.48681763]
[1769646200090,3.41428943,125.04,124.98,11.45498355]
[1769646201193,3.41428943,125.04,124.99,9.17906592]
[1769646202596,3.41428943,125.04,124.99,1.96816592]
[1769646203093,3.41428943,125.04,124.98,11.45538355]
[1769646204090,3.41428943,125.03,124.98,2.27571763]
[1769646204294,3.41428943,125.03,124.97,328.60006592]
[1769646204295,3.41428943,125.02,124.97,328.60006592]
[1769646204688,3.41428943,125.02,124.97,319.42]
[1769646205693,5.38245535,125.02,124.97,319.42]
[1769646210400,5.38245535,125.02,124.97,321.69725515]
[1769646211107,12.59175535,125.02,124.97,321.69725515]
[1769646211304,3.32458446,125.01,124.95,4.24542107]
[1769646212402,10.53458446,125.01,124.95,11.45862107]
[1769646213300,5.29275038,125.01,124.95,2.27725515]
[1769646213505,1.96816592,125.0,124.95,2.27725515]
[1769646213706,5.29275038,125.01,124.95,2.27725515]
[1769646214003,3.32458446,125.0,124.95,2.27725515]
[1769646215306,10.53508446,125.0,124.95,2.27725515]
[1769646215501,12.50325038,125.0,124.95,2.27725515]
[1769646217008,5.29275038,125.0,124.95,2.27725515]
[1769646218510,3.32458446,125.0,124.95,2.27725515]
[1769646221106,5.29275038,125.0,124.95,2.27725515]
[1769646224112,5.29275038,125.0,124.95,9.49025515]
[1769646224301,3.32458446,125.01,124.95,2.27725515]
[1769646224508,1.96816592,125.02,124.97,2.27725515]
[1769646224808,136.4,125.07,125.0,2.27725515]
[1769646224809,3.32458446,125.05,125.0,2.27725515]
[1769646225007,3.32458446,125.05,125.0,4.24542107]
[1769646226409,3.32458446,125.05,125.0,11.45562107]
[1769646227511,3.32458446,125.05,125.01,1.96816592]
[1769646230417,10.53018446,125.09,125.04,4.24542107]
[1769646230600,10.53018446,125.09,125.05,1.96816592]
[1769646231116,3.32458446,125.09,125.06,1.96816592]
[1769646231708,3.32458446,125.11,125.07,1.96816592]
[1769646232812,10.52868446,125.11,125.07,1.96816592]
[1769646236407,3.27415949,125.07,125.01,1.96816592]
[1769646237314,7.2071,125.06,125.0,2.27606015]
[1769646237610,10.48125949,125.06,125.01,1.96816592]
[1769646238420,10.48125949,125.06,125.01,4.24422607]
[1769646238811,10.48125949,125.06,125.02,1.96816592]
[1769646240412,10.48125949,125.06,125.01,321.69606015]
[1769646240714,10.48125949,125.06,125.01,323.66422607]
[1769646241419,3.27415949,125.08,125.02,4.24422607]
[1769646241617,3.27415949,125.08,125.03,1.96816592]
[1769646242318,7.2065,125.07,125.03,1.96816592]
[1769646242817,10.48065949,125.07,125.02,2.27606015]
[1769646243015,10.48115949,125.06,125.0,4.24422607]
[1769646243216,3.27415949,125.04,125.01,319.42]
[1769646243414,5.24232541,125.04,124.98,323.66422607]
[1769646244307,12.45052541,125.04,124.98,323.66422607]
[1769646244514,5.24232541,125.0,124.94,2.27606015]
[1769646244714,3.27415949,124.98,124.93,1.96816592]
[1769646245013,3.27415949,124.98,124.92,255.54422607]
[1769646245820,3.27415949,124.98,124.93,1.96816592]
[1769646246313,3.27415949,124.98,124.93,4.24422607]
[1769646246516,3.27415949,124.96,124.89,2.27606015]
[1769646246718,1.96816592,124.95,124.89,2.27606015]
[1769646246915,10.48615949,124.98,124.91,4.24422607]
[1769646247114,3.27415949,124.98,124.92,4.24422607]
[1769646247420,3.27415949,124.98,124.93,1.96816592]
[1769646248122,3.27415949,124.98,124.92,2.27606015]
[1769646248317,3.27415949,124.98,124.93,1.96816592]
[1769646248915,3.27415949,124.98,124.94,1.96816592]
[1769646252021,3.27415949,124.98,124.93,1.96816592]
[1769646253721,3.27415949,124.98,124.94,1.96816592]
[1769646254424,3.27415949,125.01,124.95,4.24422607]
[1769646254814,3.27415949,125.01,124.96,1.96816592]
[1769646255722,10.48395949,125.01,124.96,1.96816592]
[1769646257421,10.48395949,125.01,124.95,4.24422607]
[1769646257721,10.48465949,125.0,124.95,4.24593268]
[1769646258220,10.48465949,125.0,124.94,9.18357253]
[1769646259523,3.27415949,125.0,124.94,11.45963268]
[1769646259724,5.24403202,125.02,124.95,4.24593268]
[1769646259924,5.24403202,125.02,124.96,1.96987253]
[1769646260426,7.2098,125.01,124.96,1.96987253]
[1769646260628,5.24403202,125.04,124.98,1.96987253]
[1769646260922,3.27415949,125.04,124.99,1.96987253]
[1769646262331,7.209,125.03,124.99,1.96987253]
[1769646263930,10.48315949,125.03,124.99,1.96987253]
[1769646266138,3.28702182,125.01,124.97,1.96987253]
[1769646266836,10.49682182,125.01,124.97,1.96987253]
[1769646268438,10.69925827,125.03,124.98,1.96987253]
[1769646269238,10.69925827,125.03,124.99,1.96987253]
[1769646269629,3.49005827,125.03,125.0,1.96987253]
[1769646270233,7.2081,125.04,125.0,1.96987253]
[1769646270441,7.2081,125.04,125.01,1.96987253]
[1769646270939,3.49005827,125.05,125.01,1.96987253]
[1769646271342,3.49005827,125.07,125.03,1.96987253]
[1769646272748,3.49005827,125.07,125.02,1.96987253]
[1769646273548,3.49005827,125.07,125.03,1.96987253]
[1769646275350,3.49005827,125.06,125.01,1.96987253]
[1769646275651,3.49005827,125.06,125.0,1.96987253]
[1769646276356,10.69715827,125.06,125.01,1.96987253]
[1769646277651,3.49005827,125.06,125.02,1.96987253]
[1769646277846,7.2064,125.07,125.03,1.96987253]
[1769646278650,3.49005827,125.08,125.02,3.40518557]
[1769646278844,3.49005827,125.1,125.05,1.96987253]
[1769646279247,3.49005827,125.1,125.06,1.96987253]
[1769646280247,3.49005827,125.1,125.05,1.96987253]
[1769646281455,7.2053,125.09,125.05,1.96987253]
[1769646281756,3.49005827,125.1,125.05,1.96987253]
[1769646282249,3.49005827,125.1,125.06,1.96987253]
[1769646282444,3.49005827,125.12,125.07,1.96987253]
[1769646283349,10.69355827,125.12,125.07,1.96987253]
[1769646285158,10.69295827,125.14,125.09,1.96987253]
[1769646285350,3.49005827,125.14,125.09,1.96987253]
[1769646286559,10.69295827,125.13,125.09,1.96987253]
[1769646286760,3.49005827,125.13,125.09,7.253e-05]
[1769646287253,7.2035,125.12,125.08,1.96987253]
[1769646287948,3.49005827,125.13,125.08,1.96987253]
[1769646288155,3.49005827,125.13,125.1,1.96987253]
[1769646288854,3.49005827,125.13,125.09,1.96987253]
[1769646291051,7.2027,125.14,125.1,1.96987253]
[1769646291562,10.69185827,125.15,125.1,1.96987253]
[1769646294367,10.69125827,125.17,125.12,1.96987253]
[1769646296365,10.69125827,125.17,125.11,1.96987253]
[1769646297270,3.55738045,125.15,125.1,9.17437253]
[1769646297467,3.55738045,125.15,125.1,1.96987253]
[1769646297670,3.55738045,125.15,125.09,1.96987253]
[1769646297865,3.55738045,125.14,125.08,12.48605309]
[1769646299672,3.55738045,125.14,125.09,1.96987253]
[1769646300571,10.75988045,125.14,125.09,1.96987253]
[1769646301975,10.76028045,125.13,125.08,1.96987253]
[1769646302671,3.55738045,125.12,125.08,1.96987253]
[1769646302871,3.55738045,125.12,125.07,1.96987253]
[1769646303471,3.55738045,125.12,125.07,9.17617253]
[1769646303775,3.55738045,125.12,125.08,1.96987253]
[1769646304078,5.52725298,125.15,125.09,1.96987253]
[1769646304977,3.55738045,125.14,125.09,1.96987253]
[1769646305273,3.55738045,125.13,125.07,9.17617253]
[1769646305676,5.52725298,125.13,125.07,9.17617253]
[1769646306272,12.73025298,125.13,125.07,9.17617253]
[1769646306576,12.73025298,125.13,125.07,12.48715309]
[1769646307876,5.52725298,125.11,125.05,3.31098056]
[1769646308176,3.55738045,125.11,125.05,5.28085309]
[1769646308375,3.55738045,125.11,125.06,3.31098056]
[1769646310082,10.76178045,125.11,125.06,3.31098056]
[1769646310782,12.73165298,125.11,125.04,12.48895309]
[1769646310978,3.55738045,125.1,125.04,12.48895309]
[1769646311473,3.55738045,125.1,125.05,10.51838056]
[1769646311878,12.73075298,125.12,125.05,12.48825309]
[1769646313286,1.96987253,125.11,125.05,12.48825309]
[1769646318087,1.96987253,125.11,125.05,10.51838056]
[1769646318582,1.96987253,125.09,125.03,5.28085309]
[1769646318980,1.96987253,125.09,125.04,3.31098056]
[1769646319275,5.52725298,125.1,125.04,3.31098056]
[1769646319483,5.52725298,125.1,125.04,5.28085309]
[1769646319684,5.52417356,125.1,125.04,12.48577367]
[1769646319977,5.52417356,125.1,125.04,10.51898056]
[1769646319978,12.72907356,125.1,125.04,10.51898056]
[1769646322183,5.52417356,125.1,125.04,10.51898056]
[1769646322484,5.52417356,125.12,125.06,3.31098056]
[1769646322692,3.55738045,125.12,125.06,5.27777367]
[1769646322986,10.76088045,125.12,125.06,5.27777367]
[1769646324086,10.76088045,125.12,125.06,12.48447367]
[1769646324287,7.2041,125.11,125.06,10.51768056]
[1769646324486,10.76148045,125.11,125.06,10.51768056]
[1769646324789,12.72827356,125.11,125.06,10.51768056]
[1769646325082,3.3619767,125.1,125.04,1.96679311]
[1769646325287,5.32876981,125.08,125.03,7.2082]
[1769646326190,3.3619767,125.08,125.03,7.2082]
[1769646328580,3.3619767,125.08,125.03,9.17499311]
[1769646329792,3.3619767,125.08,125.02,5.49378606]
[1769646330792,7.47111352,125.12,125.0,331.84394304]
[1769646330793,5.3022887,125.07,125.0,331.84394304]
[1769646330986,5.3022887,125.07,125.0,351.84394304]
[1769646331390,12.5086887,125.07,125.0,351.84394304]
[1769646332292,3.33549559,125.06,125.0,5.33354304]
[1769646333291,3.33549559,125.06,125.0,12.54394304]
[1769646334588,3.33549559,125.06,125.01,1.96679311]
[1769646335293,3.33549559,125.06,125.0,12.54394304]
[1769646335992,5.3022887,125.06,125.0,12.54394304]
[1769646336694,3.33549559,125.04,124.98,12.54454304]
[1769646337896,10.54369559,125.04,124.98,12.54454304]
[1769646338291,10.54369559,125.04,124.99,1.96679311]
[1769646339199,3.33549559,125.04,124.99,1.96679311]
[1769646339795,10.54359559,125.04,124.99,1.96679311]
[1769646340496,10.54359559,125.04,124.98,5.33354304]
[1769646341197,10.54359559,125.04,124.98,12.54504304]
[1769646341496,12.5096887,125.06,125.0,5.33354304]
[1769646342598,3.33549559,125.05,125.0,5.33354304]
[1769646343090,3.33549559,125.05,125.0,12.54394304]
[1769646343591,12.5086887,125.07,125.01,12.54334304]
[1769646343789,10.54189559,125.07,125.02,1.96679311]
[1769646345100,3.33549559,125.07,125.02,9.17599311]
[1769646345305,3.33549559,125.07,125.02,12.54274304]
[1769646345499,10.54109559,125.09,125.04,1.96679311]
[1769646346996,3.33549559,125.08,125.04,1.96679311]
[1769646347200,3.33549559,125.08,125.03,1.96679311]
[1769646348000,3.33549559,125.08,125.04,1.96679311]
[1769646348505,3.33549559,125.08,125.03,5.33354304]
[1769646350702,10.54129559,125.08,125.03,5.33354304]
[1769646357206,10.54129559,125.08,125.04,1.96679311]
[1769646358004,3.33549559,125.08,125.04,1.96679311]
[1769646358311,10.58363709,125.09,125.04,5.19598183]
[1769646360211,3.37843709,125.09,125.04,12.40398183]
[1769646361614,10.58373709,125.09,125.04,5.19598183]
[1769646361805,10.58373709,125.09,125.04,1.96679311]
[1769646361806,3.37843709,125.09,125.04,1.96679311]
[1769646362005,3.37843709,125.09,125.03,1.96679311]
[1769646363315,10.58433709,125.08,125.03,1.96679311]
[1769646366013,7.2052,125.09,125.04,3.22918872]
[1769646366310,7.2052,125.09,125.04,5.19598183]
[1769646367011,10.58363709,125.09,125.04,5.19598183]
[1769646367515,7.2059,125.08,125.04,3.22918872]
[1769646367706,7.2059,125.08,125.03,1.96679311]
[1769646368005,10.58433709,125.08,125.03,1.96679311]
[1769646368408,10.58433709,125.08,125.02,12.40518183]
[1769646370516,10.58433709,125.08,125.03,1.96679311]
[1769646375521,3.37843709,125.08,125.03,1.96679311]
[1769646376318,3.37843709,125.08,125.04,1.96679311]
[1769646376821,10.58313709,125.1,125.04,5.19598183]
[1769646377125,3.37843709,125.1,125.06,1.96679311]
[1769646379820,3.37843709,125.1,125.06,1.96628383]
[1769646380321,7.2041,125.11,125.07,1.96628383]
[1769646380822,3.37843709,125.11,125.02,23.22918872]
[1769646381008,3.37843709,125.09,125.03,3.22918872]
[1769646381514,3.37843709,125.08,125.03,3.22918872]
[1769646383514,5.34472092,125.08,125.03,3.22918872]
[1769646384520,3.37843709,125.08,125.03,3.22918872]
[1769646386222,10.58423709,125.08,125.03,3.22918872]
[1769646386624,12.55052092,125.08,125.03,3.22918872]
[1769646402638,12.55052092,125.08,125.03,10.43778872]
[1769646404536,5.34472092,125.08,125.03,10.43778872]
[1769646404840,3.207016,125.07,125.03,10.43778872]
[1769646409246,3.207016,125.07,125.03,3.22918872]
[1769646410046,17.88400904,125.09,125.03,10.43768872]
[1769646410242,3.207016,125.09,125.05,3.26856034]
[1769646410438,3.207016,125.09,125.05,5.23484417]
[1769646410646,3.207016,125.09,125.05,3.26856034]
[1769646412750,3.207016,125.09,125.05,10.47596034]
[1769646412949,7.2047,125.1,125.05,10.47596034]
[1769646413250,10.411716,125.1,125.05,10.47596034]
[1769646414252,10.411716,125.1,125.05,12.44224417]
[1769646417253,10.411716,125.1,125.05,5.23484417]
[1769646418555,10.411716,125.1,125.05,12.44234417]
[1769646419156,10.411716,125.1,125.05,5.23484417]
[1769646424358,7.2041,125.11,125.06,5.26483844]
[1769646424562,10.5596325,125.11,125.06,5.26483844]
[1769646424763,10.5596325,125.11,125.06,3.29855461]
[1769646425556,12.52591633,125.11,125.06,3.29855461]
[1769646426063,3.3555325,125.1,125.06,3.29855461]
[1769646426562,5.32181633,125.1,125.05,7.2074]
[1769646426960,12.52641633,125.1,125.04,12.47283844]
[1769646427763,3.3555325,125.09,125.04,10.50655461]
[1769646429362,3.3555325,125.09,125.04,12.47283844]
[1769646432466,3.3555325,125.09,125.04,10.50655461]
[1769646435470,3.3555325,125.09,125.04,12.47283844]
[1769646439369,3.3555325,125.09,125.05,7.2074]
[1769646441474,10.5597325,125.11,125.06,3.29855461]
[1769646441772,10.5597325,125.11,125.06,5.26522155]
[1769646442677,10.5597325,125.11,125.06,3.29855461]
[1769646443476,3.3555325,125.1,125.05,9.17406694]
[1769646444281,3.3555325,125.1,125.05,12.47262155]
[1769646448974,9.17086694,125.11,125.05,12.47262155]
[1769646448975,7.2042,125.11,125.07,3.33875621]
[1769646449678,10.5937867,125.11,125.07,3.33875621]
[1769646450188,10.5937867,125.11,125.05,12.51282315]
[1769646451982,3.3895867,125.1,125.05,12.51282315]
[1769646452174,10.5943867,125.1,125.05,5.30542315]
[1769646452375,3.3895867,125.09,125.05,3.33875621]
[1769646458584,3.3895867,125.06,125.0,13.30226319]
[1769646458786,5.35625364,125.05,125.0,3.33875621]
[1769646459288,1.96666694,125.04,125.0,3.33875621]
[1769646459886,5.35625364,125.05,125.0,3.33875621]
[1769646460294,12.56385364,125.05,125.0,3.33875621]
[1769646460490,1.96666694,125.04,125.0,3.33875621]
[1769646465491,12.56385364,125.05,125.0,3.33875621]
[1769646472096,10.5971867,125.05,125.0,3.33875621]
[1769646480498,12.56385364,125.05,125.0,3.33875621]
[1769646481199,10.5971867,125.05,125.0,3.33875621]
[1769646482102,10.5321145,125.04,124.98,10.53257103]
[1769646482398,3.3239145,125.03,124.98,12.49923797]
[1769646482593,3.3239145,125.02,124.96,5.28773797]
[1769646482796,3.3239145,125.0,124.94,1.96666694]
[1769646482988,3.3239145,125.0,124.94,5.28773797]
[1769646483192,3.3239145,125.0,124.94,12.50153797]
[1769646483392,5.29058144,125.0,124.94,12.50153797]
[1769646484400,12.50108144,125.0,124.94,12.50153797]
[1769646484801,3.3239145,124.99,124.94,5.28773797]
[1769646485001,3.3239145,124.99,124.94,3.32107103]
[1769646485598,3.3239145,124.99,124.94,5.28773797]
[1769646486305,3.3239145,124.99,124.94,12.50143797]
[1769646491209,3.3239145,125.01,124.97,5.28773797]
[1769646491803,3.3239145,125.03,124.98,5.28773797]
[1769646492905,3.3239145,125.03,124.98,12.49923797]
[1769646493100,3.3239145,125.03,124.99,1.96666694]
[1769646498718,3.3239145,125.03,124.98,12.49923797]
[1769646501720,3.3239145,125.03,124.98,12.50129387]
[1769646508328,10.5326145,125.03,124.98,5.28979387]
[1769646511436,3.3239145,125.03,124.99,3.41030808]
[1769646511923,3.3239145,125.03,124.99,5.37903092]
[1769646513932,3.3239145,125.03,124.97,5.37903092]
[1769646515426,10.5326145,125.03,124.98,3.41030808]
[1769646515632,10.5326145,125.03,124.98,5.37903092]
[1769646519634,10.5326145,125.03,124.98,3.41030808]
[1769646519834,10.5326145,125.03,124.98,5.37903092]
[1769646522432,3.28433098,125.02,124.98,5.37903092]
[1769646522644,3.28433098,125.02,124.97,1.96872284]
[1769646523342,7.2098,125.01,124.97,1.96872284]
[1769646525038,10.49363098,125.02,124.96,12.59163092]
[1769646525534,10.49363098,125.02,124.97,1.96872284]
[1769646527240,10.49363098,125.02,124.97,5.37903092]
[1769646528242,3.28433098,125.04,124.99,5.37903092]
[1769646528442,0.38629048,125.04,124.99,5.37903092]
[1769646528942,5.80719538,125.04,124.99,1.96872284]
[1769646530234,5.80719538,125.04,124.98,5.37903092]
[1769646530434,16.30012636,125.04,124.98,12.59053092]
[1769646530642,10.49293098,125.04,124.98,12.59053092]
[1769646532045,3.28433098,125.04,124.99,7.2109]
[1769646532245,9.09531696,125.04,124.99,7.2109]
[1769646533243,9.09531696,125.04,124.99,9.17962284]
[1769646535149,16.56086788,125.04,124.99,9.17962284]
[1769646535334,10.7498819,125.04,124.99,9.17962284]
[1769646535642,17.9579819,125.04,124.99,1.96872284]
[1769646535846,10.7498819,125.04,124.99,1.96872284]
[1769646536241,5.81826369,125.03,124.98,12.59053092]
[1769646537248,9.25246735,125.03,124.98,12.59053092]
[1769646537549,3.43420366,125.02,124.98,9.18022284]
[1769646537846,3.43420366,125.02,124.97,3.54256211]
[1769646538542,9.25192199,125.02,124.97,3.54256211]
[1769646538844,9.25192199,125.02,124.95,12.72448495]
[1769646538845,10.64410366,125.01,124.95,12.72448495]
[1769646539150,7.78644117,125.02,124.94,1.96872284]
[1769646539151,3.43420366,124.99,124.94,1.96872284]
[1769646539552,3.43420366,124.99,124.94,5.51128495]
[1769646542650,10.64520366,124.99,124.94,3.54256211]
[1769646544252,3.43420366,124.99,124.94,3.54256211]
[1769646544853,3.43420366,124.99,124.94,10.75626211]
[1769646545450,3.43420366,124.99,124.94,12.72498495]
[1769646548556,3.43420366,124.98,124.94,3.54256211]
[1769646548751,3.43420366,124.98,124.93,1.96872284]
[1769646548960,3.43420366,124.97,124.92,1.96872284]
[1769646549354,5.4029265,124.97,124.91,5.51128495]
[1769646549556,3.43420366,124.97,124.91,5.51128495]
[1769646550359,10.64650366,124.97,124.91,12.72638495]
[1769646550751,10.64650366,124.97,124.92,1.96872284]
[1769646555167,10.64650366,124.97,124.93,1.96872284]
[1769646558967,10.64650366,124.97,124.92,1.96872284]
[1769646559167,10.64650366,124.97,124.91,12.72638495]
[1769646559168,3.43420366,124.96,124.91,12.72638495]
[1769646559568,3.43420366,124.95,124.91,1.96872284]
[1769646560871,3.43420366,124.95,124.91,9.18432284]
[1769646561660,3.43420366,124.95,124.91,9.18656192]
[1769646562170,3.43420366,124.95,124.91,1.97096192]
[1769646562366,3.43420366,124.95,124.9,3.54256211]
[1769646562561,3.43420366,124.95,124.9,5.51352403]
[1769646563569,10.64750366,124.95,124.9,3.54256211]
[1769646563772,10.64750366,124.95,124.9,5.51352403]
[1769646576183,1.97096192,124.97,124.88,8.9941752]
[1769646576184,10.62465769,124.94,124.88,12.24602647]
[1769646576372,10.62465769,124.94,124.89,1.97096192]
[1769646576576,10.62465769,124.94,124.89,5.22281319]
[1769646577685,3.41085769,124.94,124.89,5.22281319]
[1769646578481,10.62475769,124.94,124.89,5.22281319]
[1769646578992,10.62475769,124.94,124.9,1.97096192]
[1769646579192,3.41085769,124.94,124.9,1.97096192]
[1769646579697,3.41085769,124.94,124.89,3.25185127]
[1769646579897,3.41085769,124.94,124.9,1.97096192]
[1769646581000,3.41085769,124.94,124.89,1.97096192]
[1769646582100,3.41085769,124.93,124.89,1.97096192]
[1769646583397,1.97096192,124.96,124.88,8.9941752]
[1769646583398,3.41085769,124.92,124.88,8.9941752]
[1769646583593,3.41085769,124.92,124.88,10.96513712]
[1769646584398,3.41085769,124.92,124.89,1.97096192]
[1769646585095,3.41085769,124.92,124.88,10.96513712]
[1769646589998,3.41085769,124.97,124.91,1.97096192]
[1769646591206,10.62415769,124.96,124.93,1.97096192]
[1769646591805,10.62415769,124.96,124.93,6.192e-05]
[1769646592106,10.62415769,124.96,124.92,1.97096192]
[1769646593598,3.41085769,124.96,124.92,1.97096192]
[1769646593806,3.41085769,124.96,124.94,1.97096192]
[1769646594104,7.2122,124.97,124.93,1.97096192]
[1769646594306,10.62305769,124.97,124.93,1.97096192]
[1769646594504,3.41085769,124.97,124.93,1.97096192]
[1769646595911,3.36082282,124.99,124.95,1.97096192]
[1769646596410,3.36082282,124.99,124.94,1.97096192]
[1769646597306,10.57182282,124.99,124.94,1.97096192]